[Event "January 9 Early 2024"]
[Site "https://www.chess.com"]
[Date "2024.01.11"]
[Round "9"]
[White "Kosteniuk, Alexandra"]
[Black "Ter-Sahakyan, Samvel"]
[Result "0-1"]
[Board "133"]
[TimeControl "180+1"]
[WhiteFideId "4128125"]
[BlackFideId "13302531"]
[WhiteElo "2755"]
[BlackElo "2913"]
[WhiteTeam "SUI"]
[BlackTeam "ARM"]
[WhiteClock "0:00:06"]
[BlackClock "0:00:09"]

1. e4 {[%clk 0:02:59]}  c5 {[%clk 0:03:00]} 2. d4 {[%clk 0:02:59]}  cxd4 {[%clk 0:03:00]} 3. Qxd4 {[%clk 0:02:59]}  Nc6 {[%clk 0:02:59]} 4. Qd3 {[%clk 0:03:00]}  Nf6 {[%clk 0:02:58]} 5. Nc3 {[%clk 0:02:59]}  e6 {[%clk 0:02:48]} 6. Nf3 {[%clk 0:02:58]}  Bb4 {[%clk 0:02:34]} 7. Bd2 {[%clk 0:02:57]}  O-O {[%clk 0:02:32]} 8. O-O-O {[%clk 0:02:57]}  d5 {[%clk 0:02:27]} 9. e5 {[%clk 0:02:55]}  Bxc3 {[%clk 0:02:27]} 10. Bxc3 {[%clk 0:02:49]}  Ne4 {[%clk 0:02:27]} 11. Qe3 {[%clk 0:02:35]}  Nxc3 {[%clk 0:02:17]} 12. Qxc3 {[%clk 0:02:34]}  Qb6 {[%clk 0:02:17]} 13. Rd2 {[%clk 0:02:25]}  Bd7 {[%clk 0:02:16]} 14. Qb3 {[%clk 0:02:21]}  Qc5 {[%clk 0:01:51]} 15. h4 {[%clk 0:02:17]}  Rfc8 {[%clk 0:01:48]} 16. h5 {[%clk 0:02:12]}  h6 {[%clk 0:01:47]} 17. Rh4 {[%clk 0:02:11]}  a5 {[%clk 0:01:39]} 18. a3 {[%clk 0:02:06]}  Rab8 {[%clk 0:01:39]} 19. Rg4 {[%clk 0:01:02]}  b5 {[%clk 0:01:36]} 20. Kb1 {[%clk 0:00:51]}  Kh8 {[%clk 0:01:19]} 21. Rf4 {[%clk 0:00:49]}  Qe7 {[%clk 0:01:17]} 22. Qe3 {[%clk 0:00:42]}  b4 {[%clk 0:00:52]} 23. a4 {[%clk 0:00:41]}  Nd8 {[%clk 0:00:51]} 24. b3 {[%clk 0:00:36]}  Rc3 {[%clk 0:00:50]} 25. Bd3 {[%clk 0:00:36]}  Nb7 {[%clk 0:00:47]} 26. Rf6 {[%clk 0:00:33]}  Qf8 {[%clk 0:00:37]} 27. Rf4 {[%clk 0:00:31]}  Nc5 {[%clk 0:00:37]} 28. Nh4 {[%clk 0:00:30]}  Kg8 {[%clk 0:00:28]} 29. Rg4 {[%clk 0:00:23]}  Bxa4 {[%clk 0:00:17]} 30. Qxh6 {[%clk 0:00:20]}  Nxd3 {[%clk 0:00:18]} 31. Rxd3 {[%clk 0:00:16]}  Rxd3 {[%clk 0:00:17]} 32. cxd3 {[%clk 0:00:17]}  Bxb3 {[%clk 0:00:16]} 33. Qf6 {[%clk 0:00:17]}  Kh7 {[%clk 0:00:12]} 34. Qf4 {[%clk 0:00:13]}  Rc8 {[%clk 0:00:12]} 35. Ng6 {[%clk 0:00:07]}  Qc5 {[%clk 0:00:09]} 36. Nf8+ {[%clk 0:00:06]}  Qxf8 {[%clk 0:00:09]} 0-1

[Event "January 9 Early 2024"]
[Site "https://www.chess.com"]
[Date "2024.01.11"]
[Round "9"]
[White "Joie, Sebastien"]
[Black "Kekic, Armin"]
[Result "1-0"]
[Board "134"]
[TimeControl "180+1"]
[WhiteFideId "650420"]
[BlackFideId "14401274"]
[WhiteElo "2453"]
[BlackElo "2328"]
[WhiteTeam "FRA"]
[BlackTeam "BIH"]
[WhiteClock "0:00:07"]
[BlackClock "0:00:19"]

1. d4 {[%clk 0:03:00]}  d6 {[%clk 0:02:58]} 2. c4 {[%clk 0:02:59]}  e5 {[%clk 0:02:58]} 3. d5 {[%clk 0:02:59]}  Nf6 {[%clk 0:02:57]} 4. Nc3 {[%clk 0:02:59]}  Be7 {[%clk 0:02:57]} 5. e4 {[%clk 0:02:59]}  Nbd7 {[%clk 0:02:56]} 6. Bd3 {[%clk 0:02:59]}  a5 {[%clk 0:02:56]} 7. Nge2 {[%clk 0:02:59]}  Nc5 {[%clk 0:02:56]} 8. Bc2 {[%clk 0:02:59]}  O-O {[%clk 0:02:56]} 9. O-O {[%clk 0:03:00]}  Bd7 {[%clk 0:02:56]} 10. Ng3 {[%clk 0:03:00]}  g6 {[%clk 0:02:54]} 11. f4 {[%clk 0:03:00]}  exf4 {[%clk 0:02:54]} 12. Bxf4 {[%clk 0:03:00]}  Bg4 {[%clk 0:02:41]} 13. Qd2 {[%clk 0:02:41]}  Nh5 {[%clk 0:02:34]} 14. Nxh5 {[%clk 0:02:07]}  Bxh5 {[%clk 0:02:35]} 15. e5 {[%clk 0:02:06]}  g5 {[%clk 0:02:27]} 16. exd6 {[%clk 0:01:51]}  cxd6 {[%clk 0:02:25]} 17. Be3 {[%clk 0:01:35]}  Bg6 {[%clk 0:02:16]} 18. Bd4 {[%clk 0:01:12]}  Nd7 {[%clk 0:02:06]} 19. Rae1 {[%clk 0:01:09]}  f6 {[%clk 0:01:47]} 20. Re6 {[%clk 0:00:36]}  Ne5 {[%clk 0:01:46]} 21. Bxe5 {[%clk 0:00:34]}  dxe5 {[%clk 0:01:34]} 22. Bxg6 {[%clk 0:00:29]}  hxg6 {[%clk 0:01:33]} 23. d6 {[%clk 0:00:23]}  Qb6+ {[%clk 0:01:33]} 24. Kh1 {[%clk 0:00:22]}  Bd8 {[%clk 0:01:30]} 25. Nd5 {[%clk 0:00:21]}  Qd4 {[%clk 0:01:18]} 26. Qc2 {[%clk 0:00:16]}  Rc8 {[%clk 0:01:16]} 27. Qxg6+ {[%clk 0:00:14]}  Kh8 {[%clk 0:01:16]} 28. Qh6+ {[%clk 0:00:12]}  Kg8 {[%clk 0:01:15]} 29. Rexf6 {[%clk 0:00:06]}  Bxf6 {[%clk 0:01:10]} 30. Nxf6+ {[%clk 0:00:05]}  Rxf6 {[%clk 0:01:07]} 31. Qxf6 {[%clk 0:00:05]}  Qxc4 {[%clk 0:00:26]} 32. d7 {[%clk 0:00:03]}  Qxf1+ {[%clk 0:00:20]} 33. Qxf1 {[%clk 0:00:04]}  Rd8 {[%clk 0:00:21]} 34. Qd1 {[%clk 0:00:04]}  Kf7 {[%clk 0:00:20]} 35. Qd6 {[%clk 0:00:05]}  e4 {[%clk 0:00:21]} 36. h3 {[%clk 0:00:05]}  e3 {[%clk 0:00:21]} 37. Kg1 {[%clk 0:00:05]}  b5 {[%clk 0:00:19]} 38. Kf1 {[%clk 0:00:05]}  b4 {[%clk 0:00:18]} 39. Ke2 {[%clk 0:00:05]}  a4 {[%clk 0:00:19]} 40. Kxe3 {[%clk 0:00:06]}  b3 {[%clk 0:00:20]} 41. axb3 {[%clk 0:00:06]}  axb3 {[%clk 0:00:20]} 42. Ke4 {[%clk 0:00:07]}  g4 {[%clk 0:00:19]} 43. hxg4 {[%clk 0:00:07]} 1-0

[Event "January 9 Early 2024"]
[Site "https://www.chess.com"]
[Date "2024.01.11"]
[Round "9"]
[White "Quirke, Jeffrey"]
[Black "Buchenau, Frank"]
[Result "1/2-1/2"]
[Board "136"]
[TimeControl "180+1"]
[WhiteFideId "2013029"]
[BlackFideId "4604350"]
[WhiteElo "2140"]
[BlackElo "2393"]
[WhiteTeam "USA"]
[BlackTeam "GER"]
[WhiteClock "0:00:10"]
[BlackClock "0:00:15"]

1. e4 {[%clk 0:03:00]}  e6 {[%clk 0:03:00]} 2. d4 {[%clk 0:02:58]}  d5 {[%clk 0:03:00]} 3. Bd3 {[%clk 0:02:59]}  dxe4 {[%clk 0:02:59]} 4. Bxe4 {[%clk 0:03:00]}  Nf6 {[%clk 0:02:59]} 5. Bf3 {[%clk 0:03:01]}  c5 {[%clk 0:02:59]} 6. Ne2 {[%clk 0:02:59]}  Nc6 {[%clk 0:02:56]} 7. Be3 {[%clk 0:02:58]}  cxd4 {[%clk 0:02:56]} 8. Nxd4 {[%clk 0:02:58]}  Ne5 {[%clk 0:02:55]} 9. Nc3 {[%clk 0:02:57]}  a6 {[%clk 0:02:54]} 10. O-O {[%clk 0:02:55]}  Bb4 {[%clk 0:02:53]} 11. Ne4 {[%clk 0:02:36]}  Nd5 {[%clk 0:02:52]} 12. Bg5 {[%clk 0:02:18]}  Be7 {[%clk 0:02:32]} 13. Bxe7 {[%clk 0:02:14]}  Qxe7 {[%clk 0:02:29]} 14. Be2 {[%clk 0:02:03]}  O-O {[%clk 0:02:27]} 15. Qd2 {[%clk 0:01:47]}  Rd8 {[%clk 0:02:23]} 16. c4 {[%clk 0:01:38]}  Nb4 {[%clk 0:02:16]} 17. Qc3 {[%clk 0:01:32]}  b6 {[%clk 0:01:45]} 18. a3 {[%clk 0:01:30]}  Nbc6 {[%clk 0:01:44]} 19. Rad1 {[%clk 0:01:24]}  Bb7 {[%clk 0:01:42]} 20. Nxc6 {[%clk 0:01:22]}  Nxc6 {[%clk 0:01:39]} 21. f4 {[%clk 0:01:13]}  f5 {[%clk 0:01:28]} 22. Ng5 {[%clk 0:01:05]}  e5 {[%clk 0:01:26]} 23. c5 {[%clk 0:00:49]}  Nd4 {[%clk 0:01:07]} 24. Bc4+ {[%clk 0:00:40]}  Bd5 {[%clk 0:01:06]} 25. Rfe1 {[%clk 0:00:26]}  Qxc5 {[%clk 0:00:53]} 26. Bxd5+ {[%clk 0:00:22]}  Rxd5 {[%clk 0:00:51]} 27. Qxc5 {[%clk 0:00:22]}  bxc5 {[%clk 0:00:48]} 28. fxe5 {[%clk 0:00:21]}  Re8 {[%clk 0:00:45]} 29. e6 {[%clk 0:00:15]}  h6 {[%clk 0:00:42]} 30. Nf3 {[%clk 0:00:14]}  Nxf3+ {[%clk 0:00:34]} 31. gxf3 {[%clk 0:00:15]}  Rxe6 {[%clk 0:00:30]} 32. Rxd5 {[%clk 0:00:12]}  Rxe1+ {[%clk 0:00:30]} 33. Kf2 {[%clk 0:00:13]}  Rb1 {[%clk 0:00:28]} 34. Rxc5 {[%clk 0:00:11]}  Rxb2+ {[%clk 0:00:28]} 35. Kg3 {[%clk 0:00:12]}  f4+ {[%clk 0:00:27]} 36. Kxf4 {[%clk 0:00:11]}  Rxh2 {[%clk 0:00:27]} 37. Ra5 {[%clk 0:00:10]}  Kh7 {[%clk 0:00:19]} 38. Rxa6 {[%clk 0:00:10]}  h5 {[%clk 0:00:19]} 39. Kg3 {[%clk 0:00:10]}  Ra2 {[%clk 0:00:18]} 40. a4 {[%clk 0:00:10]}  g6 {[%clk 0:00:17]} 41. a5 {[%clk 0:00:10]}  Kh6 {[%clk 0:00:17]} 42. Ra8 {[%clk 0:00:10]}  Ra4 {[%clk 0:00:16]} 43. a6 {[%clk 0:00:10]}  Kg5 {[%clk 0:00:15]} 44. a7 {[%clk 0:00:11]}  h4+ {[%clk 0:00:16]} 45. Kh3 {[%clk 0:00:11]}  Ra3 {[%clk 0:00:16]} 46. Kg2 {[%clk 0:00:10]}  Ra2+ {[%clk 0:00:15]} 47. Kh3 {[%clk 0:00:10]}  Ra3 {[%clk 0:00:14]} 48. Kg2 {[%clk 0:00:10]}  Ra2+ {[%clk 0:00:14]} 49. Kh3 {[%clk 0:00:10]}  Ra3 {[%clk 0:00:15]} 1/2-1/2

[Event "January 9 Early 2024"]
[Site "https://www.chess.com"]
[Date "2024.01.11"]
[Round "9"]
[White "Matveeva, Olga"]
[Black "Adel, Sara"]
[Result "0-1"]
[Board "138"]
[TimeControl "180+1"]
[WhiteFideId "24107018"]
[BlackFideId "10616764"]
[WhiteElo "2391"]
[BlackElo "2230"]
[WhiteTeam "RUS"]
[BlackTeam "EGY"]
[WhiteClock "0:00:07"]
[BlackClock "0:00:18"]

1. d4 {[%clk 0:03:00]}  Nf6 {[%clk 0:02:59]} 2. c4 {[%clk 0:02:59]}  g6 {[%clk 0:03:00]} 3. g3 {[%clk 0:02:59]}  Bg7 {[%clk 0:03:00]} 4. Bg2 {[%clk 0:03:00]}  O-O {[%clk 0:03:01]} 5. Nc3 {[%clk 0:03:00]}  Nc6 {[%clk 0:03:01]} 6. Nf3 {[%clk 0:02:59]}  d6 {[%clk 0:03:02]} 7. O-O {[%clk 0:02:58]}  e5 {[%clk 0:03:02]} 8. d5 {[%clk 0:02:57]}  Ne7 {[%clk 0:03:02]} 9. e4 {[%clk 0:02:58]}  Nh5 {[%clk 0:02:59]} 10. Ne1 {[%clk 0:02:54]}  a5 {[%clk 0:02:06]} 11. Nd3 {[%clk 0:02:52]}  b6 {[%clk 0:02:05]} 12. f4 {[%clk 0:02:40]}  f5 {[%clk 0:02:04]} 13. fxe5 {[%clk 0:02:32]}  Bxe5 {[%clk 0:02:03]} 14. Nxe5 {[%clk 0:02:31]}  dxe5 {[%clk 0:02:02]} 15. exf5 {[%clk 0:02:26]}  Qd6 {[%clk 0:01:36]} 16. Ne4 {[%clk 0:02:21]}  Qb4 {[%clk 0:01:30]} 17. fxg6 {[%clk 0:02:18]}  Rxf1+ {[%clk 0:01:25]} 18. Qxf1 {[%clk 0:02:15]}  hxg6 {[%clk 0:01:24]} 19. Bh6 {[%clk 0:02:10]}  Bf5 {[%clk 0:01:23]} 20. b3 {[%clk 0:01:57]}  Kh7 {[%clk 0:01:21]} 21. Bg5 {[%clk 0:01:55]}  Rf8 {[%clk 0:01:15]} 22. Qe2 {[%clk 0:01:52]}  Bxe4 {[%clk 0:01:11]} 23. Bxe4 {[%clk 0:01:51]}  Qc3 {[%clk 0:01:10]} 24. Qxh5+ {[%clk 0:01:48]}  Kg8 {[%clk 0:01:09]} 25. Qd1 {[%clk 0:01:42]}  Nf5 {[%clk 0:00:57]} 26. Rc1 {[%clk 0:01:35]}  Qb4 {[%clk 0:00:53]} 27. Bxf5 {[%clk 0:01:31]}  Qc5+ {[%clk 0:00:51]} 28. Kh1 {[%clk 0:01:22]}  Rxf5 {[%clk 0:00:48]} 29. Qe2 {[%clk 0:01:10]}  Rxg5 {[%clk 0:00:42]} 30. Rf1 {[%clk 0:01:09]}  Qd4 {[%clk 0:00:36]} 31. Qf3 {[%clk 0:01:07]}  Rf5 {[%clk 0:00:35]} 32. Qg2 {[%clk 0:01:06]}  e4 {[%clk 0:00:27]} 33. h4 {[%clk 0:00:49]}  e3 {[%clk 0:00:25]} 34. d6 {[%clk 0:00:16]}  cxd6 {[%clk 0:00:17]} 35. Qa8+ {[%clk 0:00:14]}  Kh7 {[%clk 0:00:18]} 36. Qb7+ {[%clk 0:00:12]}  Kh6 {[%clk 0:00:18]} 37. Rg1 {[%clk 0:00:07]}  e2 {[%clk 0:00:18]} 0-1

[Event "January 9 Early 2024"]
[Site "https://www.chess.com"]
[Date "2024.01.11"]
[Round "9"]
[White "Thake, Conrad"]
[Black "Biriukov, Ilja"]
[Result "0-1"]
[Board "141"]
[TimeControl "180+1"]
[WhiteFideId "5602947"]
[BlackFideId "4113373"]
[WhiteElo "1857"]
[BlackElo "2247"]
[WhiteTeam "MLT"]
[BlackTeam "RUS"]
[WhiteClock "0:00:02"]
[BlackClock "0:00:21"]

1. c4 {[%clk 0:03:00]}  e5 {[%clk 0:02:58]} 2. Nc3 {[%clk 0:03:00]}  f5 {[%clk 0:02:57]} 3. g3 {[%clk 0:02:55]}  Nf6 {[%clk 0:02:56]} 4. Bg2 {[%clk 0:02:55]}  Bc5 {[%clk 0:02:55]} 5. e3 {[%clk 0:02:53]}  Nc6 {[%clk 0:02:53]} 6. Nge2 {[%clk 0:02:53]}  e4 {[%clk 0:02:53]} 7. O-O {[%clk 0:02:39]}  Ne5 {[%clk 0:02:52]} 8. b3 {[%clk 0:02:14]}  d6 {[%clk 0:02:42]} 9. Nf4 {[%clk 0:02:02]}  g5 {[%clk 0:02:29]} 10. Nfd5 {[%clk 0:01:44]}  O-O {[%clk 0:02:24]} 11. Nxf6+ {[%clk 0:01:42]}  Qxf6 {[%clk 0:02:17]} 12. Nd5 {[%clk 0:01:42]}  Qf7 {[%clk 0:02:12]} 13. b4 {[%clk 0:01:11]}  Bb6 {[%clk 0:02:04]} 14. Qb3 {[%clk 0:01:04]}  Be6 {[%clk 0:01:53]} 15. a4 {[%clk 0:00:54]}  Bxd5 {[%clk 0:01:45]} 16. cxd5 {[%clk 0:00:53]}  c5 {[%clk 0:01:37]} 17. a5 {[%clk 0:00:47]}  Bd8 {[%clk 0:01:28]} 18. bxc5 {[%clk 0:00:43]}  dxc5 {[%clk 0:01:28]} 19. f4 {[%clk 0:00:26]}  gxf4 {[%clk 0:01:17]} 20. exf4 {[%clk 0:00:26]}  Nd3 {[%clk 0:01:16]} 21. Bb2 {[%clk 0:00:17]}  Nxb2 {[%clk 0:01:12]} 22. Qxb2 {[%clk 0:00:17]}  Bf6 {[%clk 0:01:12]} 23. Qb3 {[%clk 0:00:16]}  Bxa1 {[%clk 0:01:10]} 24. Rxa1 {[%clk 0:00:17]}  Rfd8 {[%clk 0:01:04]} 25. d3 {[%clk 0:00:15]}  Qxd5 {[%clk 0:01:01]} 26. Qxd5+ {[%clk 0:00:14]}  Rxd5 {[%clk 0:01:02]} 27. dxe4 {[%clk 0:00:15]}  fxe4 {[%clk 0:00:56]} 28. Bxe4 {[%clk 0:00:15]}  Rd7 {[%clk 0:00:54]} 29. Rb1 {[%clk 0:00:14]}  Rb8 {[%clk 0:00:53]} 30. Rb5 {[%clk 0:00:14]}  Rc7 {[%clk 0:00:44]} 31. Bd5+ {[%clk 0:00:12]}  Kg7 {[%clk 0:00:43]} 32. Bc4 {[%clk 0:00:12]}  b6 {[%clk 0:00:42]} 33. axb6 {[%clk 0:00:11]}  axb6 {[%clk 0:00:41]} 34. Kf2 {[%clk 0:00:10]}  Rd7 {[%clk 0:00:40]} 35. Kf3 {[%clk 0:00:10]}  Rd4 {[%clk 0:00:39]} 36. Be6 {[%clk 0:00:09]}  Rb4 {[%clk 0:00:36]} 37. Rxb4 {[%clk 0:00:08]}  cxb4 {[%clk 0:00:36]} 38. f5 {[%clk 0:00:08]}  Kf6 {[%clk 0:00:35]} 39. Ke4 {[%clk 0:00:08]}  Rd8 {[%clk 0:00:31]} 40. g4 {[%clk 0:00:06]}  h6 {[%clk 0:00:30]} 41. h4 {[%clk 0:00:06]}  Rd1 {[%clk 0:00:28]} 42. Bc4 {[%clk 0:00:02]}  Re1+ {[%clk 0:00:25]} 43. Kd5 {[%clk 0:00:02]}  Re3 {[%clk 0:00:21]} 0-1

[Event "January 9 Early 2024"]
[Site "https://www.chess.com"]
[Date "2024.01.11"]
[Round "9"]
[White "Iskusnyh, Sergei"]
[Black "Bournel, Antoine"]
[Result "0-1"]
[Board "142"]
[TimeControl "180+1"]
[WhiteFideId "4120027"]
[BlackFideId "26093553"]
[WhiteElo "2670"]
[BlackElo "2566"]
[WhiteTeam "RUS"]
[BlackTeam "FRA"]
[WhiteClock "0:00:39"]
[BlackClock "0:00:02"]

1. d4 {[%clk 0:03:00]}  Nf6 {[%clk 0:02:59]} 2. c4 {[%clk 0:02:57]}  c5 {[%clk 0:02:59]} 3. d5 {[%clk 0:02:56]}  e6 {[%clk 0:02:59]} 4. Nc3 {[%clk 0:02:55]}  exd5 {[%clk 0:02:59]} 5. cxd5 {[%clk 0:02:56]}  Bd6 {[%clk 0:02:59]} 6. Nf3 {[%clk 0:02:55]}  Bc7 {[%clk 0:02:57]} 7. Bg5 {[%clk 0:02:54]}  Ba5 {[%clk 0:02:55]} 8. e3 {[%clk 0:02:51]}  d6 {[%clk 0:02:53]} 9. Bd3 {[%clk 0:02:49]}  h6 {[%clk 0:02:49]} 10. Bxf6 {[%clk 0:02:45]}  gxf6 {[%clk 0:02:48]} 11. O-O {[%clk 0:02:44]}  a6 {[%clk 0:02:42]} 12. Ne4 {[%clk 0:02:40]}  b5 {[%clk 0:02:35]} 13. a4 {[%clk 0:02:39]}  c4 {[%clk 0:02:29]} 14. Bc2 {[%clk 0:02:35]}  Qe7 {[%clk 0:02:22]} 15. axb5 {[%clk 0:02:31]}  axb5 {[%clk 0:02:21]} 16. Nd4 {[%clk 0:02:30]}  b4 {[%clk 0:02:06]} 17. Nc6 {[%clk 0:02:14]}  Nxc6 {[%clk 0:02:04]} 18. dxc6 {[%clk 0:02:15]}  O-O {[%clk 0:01:49]} 19. Nxd6 {[%clk 0:02:02]}  Be6 {[%clk 0:01:34]} 20. Nxc4 {[%clk 0:01:55]}  Bc7 {[%clk 0:01:22]} 21. Qd3 {[%clk 0:01:51]}  f5 {[%clk 0:01:20]} 22. Rxa8 {[%clk 0:01:35]}  Rxa8 {[%clk 0:01:21]} 23. Bb3 {[%clk 0:01:34]}  Rd8 {[%clk 0:01:18]} 24. Qc2 {[%clk 0:01:32]}  Qc5 {[%clk 0:00:38]} 25. Qe2 {[%clk 0:01:12]}  Qb5 {[%clk 0:00:31]} 26. g3 {[%clk 0:01:06]}  Rd6 {[%clk 0:00:27]} 27. Re1 {[%clk 0:00:56]}  Rxc6 {[%clk 0:00:26]} 28. Nd2 {[%clk 0:00:55]}  Qxe2 {[%clk 0:00:16]} 29. Rxe2 {[%clk 0:00:55]}  Rc1+ {[%clk 0:00:16]} 30. Kg2 {[%clk 0:00:55]}  Be5 {[%clk 0:00:15]} 31. Bxe6 {[%clk 0:00:54]}  fxe6 {[%clk 0:00:16]} 32. b3 {[%clk 0:00:50]}  Bc3 {[%clk 0:00:07]} 33. Nf3 {[%clk 0:00:45]}  Rb1 {[%clk 0:00:06]} 34. Nd4 {[%clk 0:00:45]}  Kf7 {[%clk 0:00:03]} 35. f4 {[%clk 0:00:44]}  Bxd4 {[%clk 0:00:03]} 36. exd4 {[%clk 0:00:44]}  Rxb3 {[%clk 0:00:04]} 37. Re5 {[%clk 0:00:44]}  Rd3 {[%clk 0:00:04]} 38. Rb5 {[%clk 0:00:41]}  Rxd4 {[%clk 0:00:03]} 39. Kh3 {[%clk 0:00:42]}  Kf6 {[%clk 0:00:02]} 40. Kh4 {[%clk 0:00:42]}  Rc4 {[%clk 0:00:02]} 41. Kh5 {[%clk 0:00:41]}  Rc2 {[%clk 0:00:01]} 42. h4 {[%clk 0:00:41]}  Rg2 {[%clk 0:00:01]} 43. Rxb4 {[%clk 0:00:39]}  Rxg3 {[%clk 0:00:02]} 44. Kxh6 {[%clk 0:00:39]}  Rg6+ {[%clk 0:00:02]} 45. Kh5 {[%clk 0:00:39]}  Rg8 {[%clk 0:00:02]} 0-1

[Event "January 9 Early 2024"]
[Site "https://www.chess.com"]
[Date "2024.01.11"]
[Round "9"]
[White "Vokhidov, Shamsiddin"]
[Black "Bartel, Mateusz"]
[Result "1-0"]
[Board "144"]
[TimeControl "180+1"]
[WhiteFideId "14204223"]
[BlackFideId "1112635"]
[WhiteElo "3002"]
[BlackElo "2830"]
[WhiteTeam "UZB"]
[BlackTeam "POL"]
[WhiteClock "0:00:13"]
[BlackClock "0:00:04"]

1. e4 {[%clk 0:03:00]}  e5 {[%clk 0:02:59]} 2. Nf3 {[%clk 0:03:01]}  d6 {[%clk 0:02:59]} 3. Nc3 {[%clk 0:03:02]}  Nf6 {[%clk 0:02:53]} 4. d4 {[%clk 0:03:02]}  exd4 {[%clk 0:02:54]} 5. Qxd4 {[%clk 0:03:02]}  Be7 {[%clk 0:02:52]} 6. Bf4 {[%clk 0:03:00]}  Nc6 {[%clk 0:02:47]} 7. Bb5 {[%clk 0:02:57]}  O-O {[%clk 0:02:47]} 8. Bxc6 {[%clk 0:02:54]}  bxc6 {[%clk 0:02:47]} 9. O-O {[%clk 0:02:55]}  Nd7 {[%clk 0:02:44]} 10. e5 {[%clk 0:02:54]}  d5 {[%clk 0:02:40]} 11. Na4 {[%clk 0:02:49]}  Ba6 {[%clk 0:02:12]} 12. Rfe1 {[%clk 0:02:48]}  Re8 {[%clk 0:02:08]} 13. Qd2 {[%clk 0:02:35]}  Nf8 {[%clk 0:02:02]} 14. Nd4 {[%clk 0:02:32]}  Qd7 {[%clk 0:01:55]} 15. Bg5 {[%clk 0:02:33]}  c5 {[%clk 0:01:43]} 16. Bxe7 {[%clk 0:02:29]}  cxd4 {[%clk 0:01:43]} 17. Bxf8 {[%clk 0:02:26]}  Qxa4 {[%clk 0:01:43]} 18. Bc5 {[%clk 0:02:23]}  d3 {[%clk 0:01:30]} 19. cxd3 {[%clk 0:02:21]}  d4 {[%clk 0:01:31]} 20. Red1 {[%clk 0:01:44]}  Rxe5 {[%clk 0:01:25]} 21. b3 {[%clk 0:01:42]}  Qd7 {[%clk 0:01:22]} 22. Rac1 {[%clk 0:01:37]}  Rae8 {[%clk 0:01:03]} 23. Qf4 {[%clk 0:01:36]}  Bb7 {[%clk 0:00:51]} 24. f3 {[%clk 0:01:15]}  Rf5 {[%clk 0:00:35]} 25. Qxd4 {[%clk 0:01:13]}  Rd5 {[%clk 0:00:35]} 26. Qc4 {[%clk 0:01:07]}  Rg5 {[%clk 0:00:26]} 27. Qf4 {[%clk 0:00:54]}  h6 {[%clk 0:00:22]} 28. Bf2 {[%clk 0:00:52]}  c6 {[%clk 0:00:08]} 29. Bxa7 {[%clk 0:00:50]}  Ra5 {[%clk 0:00:05]} 30. Bf2 {[%clk 0:00:44]}  Rxa2 {[%clk 0:00:05]} 31. Re1 {[%clk 0:00:44]}  Rae2 {[%clk 0:00:06]} 32. Rxe2 {[%clk 0:00:43]}  Rxe2 {[%clk 0:00:07]} 33. h4 {[%clk 0:00:39]}  Kh7 {[%clk 0:00:07]} 34. Rc4 {[%clk 0:00:36]}  Qxd3 {[%clk 0:00:06]} 35. Qxf7 {[%clk 0:00:34]}  Qb1+ {[%clk 0:00:05]} 36. Kh2 {[%clk 0:00:33]}  Qg6 {[%clk 0:00:06]} 37. Qxb7 {[%clk 0:00:15]}  Rxf2 {[%clk 0:00:05]} 38. Rg4 {[%clk 0:00:15]}  Qf6 {[%clk 0:00:04]} 39. Qd7 {[%clk 0:00:13]} 1-0

[Event "January 9 Early 2024"]
[Site "https://www.chess.com"]
[Date "2024.01.11"]
[Round "9"]
[White "Mena, Martin"]
[Black "Skiadopoulos, Nikolaos"]
[Result "1-0"]
[Board "146"]
[TimeControl "180+1"]
[WhiteFideId "10651225"]
[BlackFideId "4200772"]
[WhiteElo "2079"]
[BlackElo "1935"]
[WhiteTeam "EGY"]
[BlackTeam "GRE"]
[WhiteClock "0:00:04"]
[BlackClock "0:00:01"]

1. c4 {[%clk 0:03:00]}  Nf6 {[%clk 0:02:58]} 2. g3 {[%clk 0:03:00]}  g6 {[%clk 0:02:57]} 3. Bg2 {[%clk 0:03:00]}  Bg7 {[%clk 0:02:58]} 4. Nc3 {[%clk 0:02:59]}  c6 {[%clk 0:02:58]} 5. d3 {[%clk 0:02:56]}  d5 {[%clk 0:02:53]} 6. cxd5 {[%clk 0:02:56]}  cxd5 {[%clk 0:02:52]} 7. Nf3 {[%clk 0:02:52]}  Nc6 {[%clk 0:02:46]} 8. O-O {[%clk 0:02:50]}  O-O {[%clk 0:02:41]} 9. Bg5 {[%clk 0:02:44]}  h6 {[%clk 0:02:39]} 10. Bf4 {[%clk 0:02:36]}  Be6 {[%clk 0:02:26]} 11. Nb5 {[%clk 0:02:13]}  Rc8 {[%clk 0:02:18]} 12. Nfd4 {[%clk 0:02:00]}  Nxd4 {[%clk 0:01:56]} 13. Nxd4 {[%clk 0:02:00]}  Bd7 {[%clk 0:01:51]} 14. Qb3 {[%clk 0:01:36]}  b6 {[%clk 0:01:47]} 15. Rfc1 {[%clk 0:01:32]}  e6 {[%clk 0:01:26]} 16. Rxc8 {[%clk 0:01:16]}  Qxc8 {[%clk 0:01:23]} 17. Rc1 {[%clk 0:01:16]}  Qe8 {[%clk 0:01:12]} 18. Bd6 {[%clk 0:01:10]}  Ng4 {[%clk 0:00:59]} 19. Nf3 {[%clk 0:00:50]}  f5 {[%clk 0:00:44]} 20. Bxf8 {[%clk 0:00:43]}  Bxf8 {[%clk 0:00:43]} 21. h3 {[%clk 0:00:35]}  Nf6 {[%clk 0:00:38]} 22. Ne5 {[%clk 0:00:34]}  Ba4 {[%clk 0:00:36]} 23. Qc3 {[%clk 0:00:30]}  Bd6 {[%clk 0:00:31]} 24. b3 {[%clk 0:00:17]}  Bb5 {[%clk 0:00:27]} 25. a4 {[%clk 0:00:15]}  Ba6 {[%clk 0:00:27]} 26. Nc6 {[%clk 0:00:12]}  Qd7 {[%clk 0:00:24]} 27. Qxf6 {[%clk 0:00:11]}  Ba3 {[%clk 0:00:20]} 28. Qxg6+ {[%clk 0:00:11]}  Kh8 {[%clk 0:00:17]} 29. Ne5 {[%clk 0:00:11]}  Qg7 {[%clk 0:00:14]} 30. Nf7+ {[%clk 0:00:10]}  Kg8 {[%clk 0:00:14]} 31. Nxh6+ {[%clk 0:00:10]}  Kh8 {[%clk 0:00:14]} 32. Nf7+ {[%clk 0:00:05]}  Kg8 {[%clk 0:00:13]} 33. Qxg7+ {[%clk 0:00:04]}  Kxg7 {[%clk 0:00:13]} 34. Rc7 {[%clk 0:00:04]}  Kf6 {[%clk 0:00:02]} 35. Rxa7 {[%clk 0:00:04]}  Bc8 {[%clk 0:00:01]} 36. Nd8 {[%clk 0:00:04]} 1-0